fUSD/lending_fUSD_20260423
["ID","MTS","AMOUNT","RATE_DAILY","PERIOD"]
[421052443,1776954639896,-500.0,0.00013698,2]
[421052445,1776954639906,-500.0,0.00013698,2]
[421052447,1776954639916,-1837.92,0.00013698,2]
[421052449,1776954639926,-1837.92,0.00013698,2]
[421052451,1776954639936,-1837.92,0.00013698,2]
[421052453,1776954639945,-1837.92,0.00013698,2]
[421052455,1776954639955,-1602.18,0.00013698,2]
[421052457,1776954639965,-1602.18,0.00013698,2]
[421052459,1776954639974,-1602.18,0.00013698,2]
[421052461,1776954639984,-1602.18,0.00013698,2]
[421052463,1776954639994,-1837.92,0.00013698,2]
[421052465,1776954640003,-1760.5,0.00013698,2]
[421052467,1776954640013,-1760.5,0.00013698,2]
[421052469,1776954640022,-1760.5,0.00013698,2]
[421052471,1776954640032,-1760.5,0.00013698,2]
[421052473,1776954640041,-500.0,0.00013698,2]
[421052475,1776954640050,-500.0,0.00013698,2]
[421052477,1776954640060,-500.0,0.00013698,2]
[421052480,1776954640069,-500.0,0.00013698,2]
[421052482,1776954640079,-500.0,0.00013698,2]
[421052483,1776954640088,-500.0,0.00013698,2]
[421052485,1776954640099,-513.54854756,0.00013698,2]
[421052487,1776954640108,-807.18,0.00013698,2]
[421052489,1776954640118,-807.18,0.00013698,2]
[421052491,1776954640129,-807.18,0.00013698,2]
[421052493,1776954640138,-807.18,0.00013698,2]
[421052495,1776954640148,-2800.28,0.00013698,2]
[421052497,1776954640158,-2800.28,0.00013698,2]
[421052499,1776954640168,-2800.28,0.00013698,2]
[421052501,1776954640178,-2800.28,0.00013698,2]
[421052503,1776954640187,-2023.39,0.00013698,2]
[421052505,1776954640197,-2023.39,0.00013698,2]
[421052507,1776954640206,-2023.39,0.00013698,2]
[421052509,1776954640215,-2023.39,0.00013698,2]
[421052511,1776954640225,-1229.76,0.00013698,2]
[421052513,1776954640234,-1229.76,0.00013698,2]
[421052515,1776954640243,-1229.76,0.00013698,2]
[421052517,1776954640252,-1229.76,0.00013698,2]
[421052519,1776954640262,-1229.76,0.00013698,2]
[421052521,1776954640271,-498.8,0.00013698,2]
[421052523,1776954640280,-1885.9,0.00013698,2]
[421052525,1776954640290,-1885.9,0.00013698,2]
[421052527,1776954640300,-1885.9,0.00013698,2]
[421052529,1776954640309,-1885.9,0.00013698,2]
[421052531,1776954640319,-1885.9,0.00013698,2]
[421052533,1776954640328,-500.0,0.00013698,2]
[421052535,1776954640337,-500.0,0.00013698,2]
[421052537,1776954640346,-500.0,0.00013698,2]
[421052539,1776954640356,-500.0,0.00013698,2]
[421052541,1776954640366,-500.0,0.00013698,2]
[421052543,1776954640376,-644.59,0.00013698,2]
[421052545,1776954640386,-500.0,0.00013698,2]
[421052547,1776954640395,-644.59,0.00013698,2]
[421052549,1776954640404,-500.0,0.00013698,2]
[421052551,1776954640414,-644.59,0.00013698,2]
[421052553,1776954640423,-500.0,0.00013698,2]
[421052555,1776954640434,-644.59,0.00013698,2]
[421052557,1776954640443,-500.0,0.00013698,2]
[421052559,1776954640452,-500.0,0.00013698,2]
[421052561,1776954640461,-500.0,0.00013698,2]
[421052563,1776954640470,-500.0,0.00013698,2]
[421052564,1776954640480,-500.0,0.00013698,2]
[421052566,1776954640490,-500.0,0.00013698,2]
[421052568,1776954640498,-500.0,0.00013698,2]
[421052570,1776954640507,-500.0,0.00013698,2]
[421052572,1776954640516,-500.0,0.00013698,2]
[421052574,1776954640526,-500.0,0.00013698,2]
[421052576,1776954640535,-997.95,0.00013698,2]
[421052578,1776954640545,-997.95,0.00013698,2]
[421052580,1776954640554,-997.95,0.00013698,2]
[421052582,1776954640563,-997.95,0.00013698,2]
[421052584,1776954640573,-1116.98,0.00013698,2]
[421052586,1776954640582,-1116.98,0.00013698,2]
[421052588,1776954640591,-1116.98,0.00013698,2]
[421052590,1776954640602,-1116.98,0.00013698,2]
[421052592,1776954640611,-500.0,0.00013698,2]
[421052594,1776954640620,-500.0,0.00013698,2]
[421052596,1776954640628,-500.0,0.00013698,2]
[421052598,1776954640638,-500.0,0.00013698,2]
[421052600,1776954640647,-500.0,0.00013698,2]
[421052602,1776954640656,-500.0,0.00013698,2]
[421052604,1776954640665,-500.0,0.00013698,2]
[421052606,1776954640674,-500.0,0.00013698,2]
[421052608,1776954640683,-500.0,0.00013698,2]
[421052609,1776954640693,-1536.23,0.00013698,2]
[421052611,1776954640702,-1536.23,0.00013698,2]
[421052613,1776954640711,-1536.23,0.00013698,2]
[421052615,1776954640721,-1536.23,0.00013698,2]
[421052617,1776954640730,-3431.13,0.00013698,2]
[421052619,1776954640740,-3431.13,0.00013698,2]
[421052621,1776954640749,-2192.19,0.00013698,2]
[421052623,1776954640758,-3431.13,0.00013698,2]
[421052625,1776954640768,-2192.19,0.00013698,2]
[421052627,1776954640777,-3431.13,0.00013698,2]
[421052629,1776954640787,-2192.19,0.00013698,2]
[421052631,1776954640796,-3431.13,0.00013698,2]
[421052633,1776954640805,-2192.19,0.00013698,2]
[421052635,1776954640815,-2192.19,0.00013698,2]
[421052637,1776954640824,-244.0,0.00013698,2]
[421052639,1776954640833,-244.0,0.00013698,2]
[421052641,1776954640843,-244.0,0.00013698,2]
[421052643,1776954640853,-244.0,0.00013698,2]
[421052645,1776954640862,-889.62,0.00013698,2]
[421052647,1776954640872,-244.0,0.00013698,2]
[421052649,1776954640881,-889.62,0.00013698,2]
[421052651,1776954640890,-889.62,0.00013698,2]
[421052653,1776954640899,-889.62,0.00013698,2]
[421052655,1776954640908,-240.64,0.00013699,2]
[421052657,1776954640917,-500.0,0.00013699,2]
[421052659,1776954640926,-6143.74,0.00013699,2]
[421052660,1776954640936,-646.770127,0.00013699,2]
[421052663,1776954640945,-646.770127,0.00013699,2]
[421052664,1776954640954,-646.770127,0.00013699,2]
[421052666,1776954640963,-646.770127,0.00013699,2]
[421052668,1776954640973,-175.0,0.00013699,2]
[421052670,1776954640982,-474.0,0.00013699,2]
[421052672,1776954640992,-474.0,0.00013699,2]
[421052674,1776954641002,-474.0,0.00013699,2]
[421052676,1776954641010,-500.0,0.00013699,2]
[421052678,1776954641020,-175.41925295,0.00013699,2]
[421052680,1776954641029,-22162.97,0.000137,2]
[421052682,1776954641039,-22162.97,0.000137,2]
[421052684,1776954641050,-183.4,0.00013727,2]
[421052686,1776954641059,-498.8,0.00013972,2]
[421052688,1776954641069,-60349.24889483,0.00014,4]
[421052690,1776954641078,-200.0,0.00014,2]
[421052692,1776954641088,-498.8,0.00014246,2]
[421052694,1776954641097,-150.0,0.00014375,2]
[421052696,1776954641107,-150.0,0.00014375,2]
[421052698,1776954641116,-150.0,0.00014375,2]
[421052700,1776954641126,-150.5557287,0.00014375,2]
[421052702,1776954641135,-150.0,0.00014375,2]
[421052704,1776954641145,-150.0,0.00014375,2]
[421052706,1776954641154,-150.12467891,0.00014375,2]
[421052708,1776954641163,-150.0,0.00014375,2]
[421052710,1776954641173,-150.0,0.00014375,2]
[421052713,1776954641183,-150.0,0.00014375,2]
[421052714,1776954641192,-150.0,0.00014375,2]
[421052716,1776954641201,-150.0,0.00014459,2]
[421052718,1776954641211,-498.8,0.0001452,2]
[421052720,1776954641220,-150.0,0.00014543,2]
[421052722,1776954641229,-150.0,0.00014575,2]
[421052724,1776954641238,-150.0,0.00014604,2]
[421052726,1776954641248,-150.0,0.00014628,2]
[421052728,1776954641257,-150.0,0.00014642,2]
[421052730,1776954641267,-150.0,0.00014712,2]
[421052732,1776954641276,-160.0,0.00014722,2]
[421052734,1776954641286,-150.0,0.00014745,2]
[421052736,1776954641295,-150.0,0.00014775,2]
[421052738,1776954641305,-150.0,0.00014775,2]
[421052740,1776954641314,-498.82,0.00014794,2]
[421052742,1776954641323,-150.0,0.00014796,2]
[421052744,1776954641331,-150.0,0.00014832,2]
[421052746,1776954641340,-150.0,0.0001488,2]
[421052748,1776954641350,-988.03,0.00014899,2]
[421052750,1776954641359,-646.770127,0.000149,2]
[421052752,1776954641368,-646.770127,0.000149,2]
[421052754,1776954641378,-646.770127,0.000149,2]
[421052756,1776954641388,-646.770127,0.000149,2]
[421052758,1776954641397,-229.79324341,0.000149,2]
[421052760,1776954641409,-229.79324341,0.000149,2]
[421052762,1776954641418,-229.79324341,0.000149,2]
[421052764,1776954641428,-150.0,0.00014908,2]
[421052766,1776954641437,-150.0,0.00014964,2]
[421052767,1776954641446,-150.0,0.00014974,2]
[421052768,1776954641455,-320.0,0.00015,2]
[421052769,1776954641465,-410.0,0.00015,2]
[421052770,1776954641475,-355.0,0.00015,2]
[421052771,1776954641484,-300.0,0.00015,2]
[421052772,1776954641493,-160.0,0.00015,2]
[421052773,1776954641503,-1367.28,0.0001501,2]
[421052774,1776954641512,-500.0,0.0001501,2]
[421052775,1776954641521,-1837.92,0.0001501,2]
[421052776,1776954641531,-150.0,0.0001501,2]
[421052777,1776954641540,-1229.76,0.0001501,2]
[421052778,1776954641549,-1885.9,0.0001501,2]
[421052779,1776954641559,-500.0,0.0001501,2]
[421052780,1776954641568,-247.71614636,0.0001501,2]
[421052781,1776954641578,-500.0,0.0001501,2]
[421052782,1776954641588,-3431.13,0.0001501,2]
[421052783,1776954641597,-2192.19,0.0001501,2]
[421052784,1776954641607,-505.0,0.00015011,3]
[421052785,1776954641617,-150.0,0.00015048,2]
[421052786,1776954641627,-150.0,0.0001506,2]
[421052788,1776954641636,-155.0,0.00015067,2]
[421052789,1776954641646,-150.0,0.00015068,2]
[421052790,1776954641655,-150.0,0.00015132,2]
[421052792,1776954641664,-150.0,0.00015174,2]
[421052794,1776954641674,-150.0,0.00015174,2]
[421052796,1776954641683,-150.0,0.00015174,2]
[421052798,1776954641692,-150.0,0.00015174,2]
[421052800,1776954641702,-150.0,0.00015216,2]
[421052802,1776954641713,-150.0,0.00015288,2]
[421052804,1776954641722,-150.0,0.000153,2]
[421052806,1776954641731,-150.0,0.00015374,2]
[421052808,1776954641741,-150.0,0.00015384,2]
[421052810,1776954641750,-151.0,0.00015405,2]
[421052812,1776954641759,-150.0,0.0001544,2]
[421052814,1776954641768,-150.0,0.00015468,2]
[421052816,1776954641778,-280.0,0.00015507,2]
[421052818,1776954641787,-150.0,0.00015516,2]
[421052820,1776954641797,-150.0,0.00015552,2]
[421052822,1776954641806,-150.0,0.00015564,2]
[421052824,1776954641816,-150.0,0.00015573,2]
[421052826,1776954641825,-150.0,0.00015573,2]
[421052828,1776954641835,-4500.0,0.000156,30]
[421052830,1776954641844,-250.0,0.00015616,2]
[421052833,1776954641857,-150.0,0.00015636,2]
[421052835,1776954641866,-150.0,0.00015706,2]
[421052837,1776954641875,-150.0,0.0001572,2]
[421052839,1776954641884,-150.0,0.00015744,2]
[421052841,1776954641893,-150.0,0.00015773,2]
[421052843,1776954641903,-150.0,0.00015804,2]
[421052845,1776954641912,-180.0,0.00015808,2]
[421052846,1776954641921,-683.60342917,0.00015844,2]
[421052848,1776954641930,-150.0,0.00015889,2]
[421052850,1776954641940,-500.0,0.0001589,2]
[421052852,1776954641949,-500.0,0.0001589,2]
[421052854,1776954641958,-500.0,0.0001589,2]
[421052856,1776954641967,-500.0,0.0001589,2]
[421052858,1776954641976,-241.93,0.00015955,2]
[421052860,1776954641986,-150.0,0.00015973,2]
[421052862,1776954641995,-280.90970038,0.00015973,2]
[421052864,1776954642005,-211.26673769,0.00015973,2]
[421052867,1776954642015,-153.95685762,0.00015973,2]
[421052869,1776954642024,-297.75503325,0.00015973,2]
[421052871,1776954642034,-150.0,0.00015973,2]
[421052873,1776954642044,-289.80723727,0.00015973,2]
[421052908,1776954642359,-150.0,0.00015973,2]
[421052910,1776954642383,-239.87337831,0.00015973,2]
[421052912,1776954642393,-500.0,0.00015998,2]
[421052914,1776954642402,-500.0,0.00015998,2]
[421052916,1776954642411,-1159.32,0.00015998,2]
[421052918,1776954642420,-2252.65,0.00015998,2]
[421052920,1776954642430,-500.0,0.00015998,2]
[421052922,1776954642439,-1602.18,0.00015998,2]
[421052924,1776954642449,-1760.5,0.00015998,2]
[421052926,1776954642458,-500.0,0.00015998,2]
[421052928,1776954642468,-500.0,0.00015998,2]
[421052930,1776954642477,-807.18,0.00015998,2]
[421052932,1776954642487,-2800.28,0.00015998,2]
[421052935,1776954642496,-2023.39,0.00015998,2]
[421052937,1776954642507,-644.59,0.00015998,2]
[421052940,1776954642516,-500.0,0.00015998,2]
[421052943,1776954642526,-500.0,0.00015998,2]
[421052945,1776954642536,-997.95,0.00015998,2]
[421052948,1776954642545,-1116.98,0.00015998,2]
[421052950,1776954642554,-1536.23,0.00015998,2]
[421052951,1776954642564,-646.770127,0.00016,2]
[421052953,1776954642574,-646.770127,0.00016,2]
[421052957,1776954642583,-646.770127,0.00016,2]
[421052959,1776954642592,-646.770127,0.00016,2]
[421052961,1776954642602,-24716.23557613,0.00016,2]
[421052963,1776954642611,-200.0,0.00016,2]
[421052965,1776954642621,-9999.99,0.00016116,2]
[421052967,1776954642630,-350.0,0.00016164,2]
[421052970,1776954642640,-959.66424499,0.00016351,22]
[421052972,1776954642649,-150.00000001,0.00016384,2]
[421052974,1776954642659,-500.0,0.00016399,2]
[421052976,1776954642669,-889.62,0.00016399,2]
[421052978,1776954642678,-2000.0,0.000164,2]
[421052980,1776954642689,-2000.0,0.000164,2]
[421052983,1776954642699,-2000.0,0.000164,2]
[421052986,1776954642708,-2000.0,0.000164,2]
[421052989,1776954642718,-2000.0,0.000164,2]
[421052991,1776954642728,-2000.0,0.000164,2]
[421052993,1776954642737,-2000.0,0.000164,2]
[421052995,1776954642747,-2000.0,0.000164,2]
[421052997,1776954642756,-2000.0,0.000164,2]
[421052999,1776954642765,-2000.0,0.000164,2]
[421053001,1776954642774,-2000.0,0.000164,2]
[421053003,1776954642784,-2000.0,0.000164,2]
[421053005,1776954642793,-2000.0,0.000164,2]
[421053007,1776954642803,-2000.0,0.000164,2]
[421053009,1776954642812,-2000.0,0.000164,2]
[421053011,1776954642823,-2000.0,0.000164,2]
[421053013,1776954642832,-988.03,0.00016437,2]
[421053015,1776954642841,-988.03,0.00016437,2]
[421053017,1776954642853,-500.0,0.00016437,2]
[421053019,1776954642862,-500.0,0.00016437,2]
[421053021,1776954642871,-500.0,0.00016437,2]
[421053023,1776954642881,-500.0,0.00016437,2]
[421053025,1776954642890,-1159.32,0.00016437,2]
[421053027,1776954642899,-1159.32,0.00016437,2]
[421053030,1776954642908,-1367.28,0.00016437,2]
[421053032,1776954642918,-500.0,0.00016437,2]
[421053034,1776954642927,-2252.65,0.00016437,2]
[421053036,1776954642936,-2252.65,0.00016437,2]
[421053038,1776954642945,-500.0,0.00016437,2]
[421053040,1776954642954,-500.0,0.00016437,2]
[421053042,1776954642963,-1602.18,0.00016437,2]
[421053044,1776954642973,-1602.18,0.00016437,2]
[421053046,1776954642982,-1837.92,0.00016437,2]
[421053047,1776954642991,-1760.5,0.00016437,2]
[421053050,1776954643000,-1760.5,0.00016437,2]
[421053052,1776954643011,-500.0,0.00016437,2]
[421053054,1776954643020,-500.0,0.00016437,2]
[421053056,1776954643028,-500.0,0.00016437,2]
[421053058,1776954643039,-500.0,0.00016437,2]
[421053060,1776954643049,-807.18,0.00016437,2]
[421053062,1776954643058,-807.18,0.00016437,2]
[421053064,1776954643067,-2800.28,0.00016437,2]
[421053066,1776954643076,-2800.28,0.00016437,2]
[421053068,1776954643086,-2023.39,0.00016437,2]
[421053070,1776954643095,-2023.39,0.00016437,2]
[421053071,1776954643105,-1229.76,0.00016437,2]
[421053073,1776954643114,-1885.9,0.00016437,2]
[421053075,1776954643124,-500.0,0.00016437,2]
[421053077,1776954643134,-644.59,0.00016437,2]
[421053079,1776954643144,-500.0,0.00016437,2]
[421053082,1776954643155,-644.59,0.00016437,2]
[421053083,1776954643164,-500.0,0.00016437,2]
[421053086,1776954643175,-264.81256145,0.00016437,2]
[421053087,1776954643184,-997.95,0.00016437,2]
[421053089,1776954643193,-997.95,0.00016437,2]
[421053092,1776954643207,-1116.98,0.00016437,2]
[421053094,1776954643216,-1116.98,0.00016437,2]
[421053096,1776954643225,-500.0,0.00016437,2]
[421053098,1776954643235,-500.0,0.00016437,2]
[421053100,1776954643244,-1536.23,0.00016437,2]
[421053102,1776954643253,-1536.23,0.00016437,2]
[421053104,1776954643262,-3431.13,0.00016437,2]
[421053106,1776954643271,-2192.19,0.00016437,2]
[421053108,1776954643281,-889.62,0.00016437,2]
[421053110,1776954643291,-7842.6,0.00016438,2]
[421053112,1776954643301,-1110.87,0.00016438,2]
[421053114,1776954643310,-1851.45,0.00016438,2]
[421053116,1776954643320,-2212.77571439,0.00016438,2]
[421053118,1776954643329,-2212.77571439,0.00016438,2]
[421053120,1776954643339,-2212.77571439,0.00016438,2]
[421053122,1776954643349,-2212.77571439,0.00016438,2]
[421053124,1776954643358,-2212.77571439,0.00016438,2]
[421053126,1776954643368,-2212.77571439,0.00016438,2]
[421053128,1776954643379,-2212.77571439,0.00016438,2]
[421053130,1776954643388,-2212.77571439,0.00016438,2]
[421053132,1776954643398,-2212.77571439,0.00016438,2]
[421053134,1776954643408,-2212.77571439,0.00016438,2]
[421053136,1776954643418,-2212.77571439,0.00016438,2]
[421053138,1776954643427,-2212.77571439,0.00016438,2]
[421053140,1776954643436,-2212.77571439,0.00016438,2]
[421053141,1776954643446,-2212.77571439,0.00016438,2]
[421053143,1776954643456,-2212.77571439,0.00016438,2]
[421053145,1776954643466,-2212.77571439,0.00016438,2]
[421053147,1776954643476,-2212.77571439,0.00016438,2]
[421053148,1776954643485,-2212.77571439,0.00016438,2]
[421053149,1776954643495,-2212.77571439,0.00016438,2]
[421053150,1776954643504,-2212.77571439,0.00016438,2]
[421053151,1776954643514,-2212.77571439,0.00016438,2]
[421053153,1776954643523,-2212.77571439,0.00016438,2]
[421053155,1776954643533,-2212.77571439,0.00016438,2]
[421053156,1776954643542,-2212.77571439,0.00016438,2]
[421053157,1776954643552,-2212.77571439,0.00016438,2]
[421053158,1776954643561,-2212.77571439,0.00016438,2]
[421053159,1776954643570,-2212.77571439,0.00016438,2]
[421053160,1776954643580,-2212.77571439,0.00016438,2]
[421053161,1776954643590,-2212.77571439,0.00016438,2]
[421053162,1776954643599,-2212.77571439,0.00016438,2]
[421053163,1776954643613,-2212.77571439,0.00016438,2]
[421053164,1776954643622,-2212.77571439,0.00016438,2]
[421053165,1776954643632,-2212.77571439,0.00016438,2]
[421053166,1776954643642,-2212.77571439,0.00016438,2]
[421053167,1776954643652,-2212.77571439,0.00016438,2]
[421053168,1776954643662,-2212.77571439,0.00016438,2]
[421053169,1776954643671,-2212.77571439,0.00016438,2]
[421053171,1776954643681,-2212.77571439,0.00016438,2]
[421053172,1776954643690,-2212.77571439,0.00016438,2]
[421053173,1776954643700,-2212.77571439,0.00016438,2]
[421053174,1776954643710,-2212.77571439,0.00016438,2]
[421053175,1776954643719,-2212.77571439,0.00016438,2]
[421053176,1776954643729,-2212.77571439,0.00016438,2]
[421053177,1776954643738,-2212.77571439,0.00016438,2]
[421053178,1776954643748,-2212.77571439,0.00016438,2]
[421053179,1776954643758,-2212.77571439,0.00016438,2]
[421053180,1776954643769,-2212.77571439,0.00016438,2]
[421053181,1776954643779,-2212.77571439,0.00016438,2]
[421053182,1776954643789,-2212.77571439,0.00016438,2]
[421053183,1776954643799,-2212.77571439,0.00016438,2]
[421053184,1776954643809,-2212.77571439,0.00016438,2]
[421053185,1776954643818,-2212.77571439,0.00016438,2]
[421053186,1776954643828,-2212.77571439,0.00016438,2]
[421053187,1776954643838,-2212.77571439,0.00016438,2]
[421053188,1776954643852,-2212.77571439,0.00016438,2]
[421053189,1776954643861,-2212.77571439,0.00016438,2]
[421053190,1776954643871,-2212.77571439,0.00016438,2]
[421053191,1776954643881,-2212.77571439,0.00016438,2]
[421053192,1776954643890,-2212.77571439,0.00016438,2]
[421053193,1776954643900,-2212.77571439,0.00016438,2]
[421053194,1776954643909,-2212.77571439,0.00016438,2]
[421053195,1776954643919,-2212.77571439,0.00016438,2]
[421053196,1776954643929,-2212.77571439,0.00016438,2]
[421053197,1776954643938,-2212.77571439,0.00016438,2]
[421053198,1776954643948,-9515.97933401,0.00016438,2]
[421053199,1776954643958,-9515.97933401,0.00016438,2]
[421053200,1776954643968,-9515.97933401,0.00016438,2]
[421053201,1776954643977,-9515.97933401,0.00016438,2]
[421053202,1776954643987,-9515.97933401,0.00016438,2]
[421053203,1776954643996,-9515.97933401,0.00016438,2]
[421053204,1776954644006,-9515.97933401,0.00016438,2]
[421053205,1776954644016,-9515.97933401,0.00016438,2]
[421053206,1776954644026,-9515.97933401,0.00016438,2]
[421053207,1776954644036,-9515.97933401,0.00016438,2]
[421053208,1776954644045,-9515.97933401,0.00016438,2]
[421053209,1776954644056,-9515.97933401,0.00016438,2]
[421053210,1776954644066,-9515.97933401,0.00016438,2]
[421053211,1776954644076,-9515.97933401,0.00016438,2]
[421053212,1776954644088,-9515.97933401,0.00016438,2]
[421053213,1776954644098,-9515.97933401,0.00016438,2]
[421053214,1776954644109,-9515.97933401,0.00016438,2]
[421053215,1776954644118,-9515.97933401,0.00016438,2]
[421053216,1776954644128,-9515.97933401,0.00016438,2]
[421053217,1776954644137,-9515.97933401,0.00016438,2]
[421053218,1776954644147,-9515.97933401,0.00016438,2]
[421053219,1776954644157,-9515.97933401,0.00016438,2]
[421053220,1776954644167,-9515.97933401,0.00016438,2]
[421053221,1776954644176,-9515.97933401,0.00016438,2]
[421053222,1776954644186,-2500.0,0.00016438,2]
[421053223,1776954644196,-2500.0,0.00016438,2]
[421053224,1776954644205,-2500.0,0.00016438,2]
[421053225,1776954644215,-2500.0,0.00016438,2]
[421053226,1776954644226,-2500.0,0.00016438,2]
[421053227,1776954644236,-2500.0,0.00016438,2]
[421053228,1776954644245,-2500.0,0.00016438,2]
[421053229,1776954644256,-244.8857825,0.00016438,2]
[421053230,1776954644265,-384.31709045,0.00016438,2]
[421053231,1776954644275,-157.89013005,0.00016438,2]
[421053232,1776954644285,-528.72175956,0.00016438,2]
[421053233,1776954644294,-211.53704018,0.00016438,2]
[421053234,1776954644303,-500.0,0.00016438,2]
[421053235,1776954644313,-163.93076381,0.00016438,2]
[421053236,1776954644322,-500.0,0.00016438,2]
[421053237,1776954644334,-500.0,0.00016438,2]
[421053238,1776954644345,-500.0,0.00016438,2]
[421053239,1776954644356,-500.0,0.00016438,2]
[421053240,1776954644366,-162.30159093,0.00016438,2]
[421053241,1776954644375,-500.0,0.00016438,2]
[421053242,1776954644385,-500.0,0.00016438,2]
[421053243,1776954644395,-165.36539969,0.00016438,2]
[421053244,1776954644404,-500.0,0.00016438,2]
[421053245,1776954644414,-500.0,0.00016438,2]
[421053246,1776954644424,-500.0,0.00016438,2]
[421053247,1776954644434,-150.0,0.00016438,2]
[421053248,1776954644444,-500.0,0.00016438,2]
[421053249,1776954644454,-500.0,0.00016438,2]
[421053250,1776954644464,-500.0,0.00016438,2]
[421053251,1776954644473,-500.0,0.00016438,2]
[421053252,1776954644484,-152.59054746,0.00016438,2]
[421053253,1776954644494,-165.19561704,0.00016438,2]
[421053254,1776954644504,-500.0,0.00016438,2]
[421053255,1776954644513,-162.8836069,0.00016438,2]
[421053256,1776954644523,-520.16389296,0.00016438,2]
[421053257,1776954644542,-200.09320334,0.00016438,2]
[421053258,1776954644553,-200.09320324,0.00016438,2]
[421053259,1776954644563,-500.0,0.00016438,2]
[421053260,1776954644573,-500.0,0.00016438,2]
[421053261,1776954644582,-500.0,0.00016438,2]
[421053262,1776954644592,-500.0,0.00016438,2]
[421053263,1776954644602,-500.0,0.00016438,2]
[421053264,1776954644612,-338.55162245,0.00016438,2]
[421053265,1776954644623,-500.0,0.00016438,2]
[421053266,1776954644633,-500.0,0.00016438,2]
[421053267,1776954644642,-500.0,0.00016438,2]
[421053268,1776954644652,-500.0,0.00016438,2]
[421053269,1776954644662,-500.0,0.00016438,2]
[421053270,1776954644672,-500.0,0.00016438,2]
[421053271,1776954644682,-500.0,0.00016438,2]
[421053272,1776954644692,-500.0,0.00016438,2]
[421053273,1776954644702,-500.0,0.00016438,2]
[421053274,1776954644712,-527.82696707,0.00016438,2]
[421053275,1776954644722,-160.73095677,0.00016438,2]
[421053276,1776954644732,-475.37528913,0.00016438,2]
[421053277,1776954644741,-1277.66774412,0.000165,3]
[421053278,1776954644751,-505.0,0.00016523,4]
[421053279,1776954644761,-1266.0,0.00016567,2]
[421053280,1776954644771,-1219.0,0.00016567,2]
[421053281,1776954644781,-927.0,0.00016567,2]
[421053282,1776954644791,-1048.0,0.00016567,2]
[421053283,1776954644801,-6032.0,0.00016567,2]
[421053284,1776954644811,-450.0,0.00016712,2]
[421053285,1776954644820,-1000.0,0.00016986,2]
[421053286,1776954644830,-1000.0,0.00016986,2]
[421053287,1776954644840,-810.99199121,0.00016986,2]
[421053288,1776954644850,-630.16594839,0.00016986,2]
[421053289,1776954644860,-1000.0,0.00016986,2]
[421053290,1776954644870,-1000.0,0.00016986,2]
[421053291,1776954644880,-288.13177309,0.00016986,2]
[421053292,1776954644890,-1000.0,0.00016986,2]
[421053293,1776954644899,-1000.0,0.00016986,2]
[421053294,1776954644909,-1000.0,0.00016986,2]
[421053295,1776954644918,-150.0,0.00016986,2]
[421053296,1776954644928,-1000.0,0.00016986,2]
[421053297,1776954644939,-1000.0,0.00016986,2]
[421053298,1776954644949,-669.57472964,0.00016986,2]
[421053299,1776954644958,-1000.0,0.00016986,2]
[421053300,1776954644968,-1000.0,0.00016986,2]
[421053301,1776954644978,-191.29850333,0.00016986,2]
[421053302,1776954644988,-1105.42680579,0.00016986,2]
[421053303,1776954644998,-1000.0,0.00016986,2]
[421053304,1776954645008,-1000.0,0.00016986,2]
[421053305,1776954645018,-181.37858471,0.00016986,2]
[421053306,1776954645028,-1000.0,0.00016986,2]